[Event "44th Chess Olympiad Open 2022"]
[Site "Chennai"]
[Date "2022.08.03"]
[Round "6.18"]
[White "Preotu, Razvan"]
[Black "Jianu, Vlad-Cristian"]
[Result "1/2-1/2"]
[WhiteElo "2445"]
[BlackElo "2511"]
[Annotator "TA"]
[PlyCount "86"]
[EventDate "2022.??.??"]
[TimeControl "60"]

{[%evp 10,86,23,10,17,12,12,18,14,17,17,8,10,11,17,14,11,13,9,3,0,3,8,19,14,1,
24,25,29,6,28,25,29,-134,15,12,23,23,25,21,26,27,33,-57,-43,-39,-46,-46,-39,
-43,-37,-41,-41,-48,-41,-46,-26,-50,-64,-50,0,0,0,0,0,0,26,0,0,0,0,0,0,0,0,0,0,
0,0]} 1. e4 {[%emt 0:00:05]} c6 {[%emt 0:00:05]} 2. Nc3 {[%emt 0:01:29]} d5 {
[%emt 0:00:06]} 3. Nf3 {[%emt 0:00:05]} Bg4 {[%emt 0:00:25]} 4. h3 {[%emt 0:00:
00]} Bxf3 {[%emt 0:00:07]} 5. Qxf3 {[%emt 0:00:07]} e6 {[%emt 0:00:04]} 6. Be2
{[%emt 0:01:35]} Bc5 {[%emt 0:00:42] B11: Caro-Kann: Two Knights Variation.} 7.
O-O {[%emt 0:00:18]} Nd7 {[%emt 0:00:17]} 8. exd5 {[%emt 0:03:07]} exd5 {
[%emt 0:00:14]} 9. Re1 {[%emt 0:00:57] Black must now prevent Ba6+.} Ne7 {
[%emt 0:00:36][%cal Yg8e7,Ye7g6,Yg6f8,Yf8e6,Ye6g5]} 10. Na4 {[%emt 0:00:00]}
Bd6 {[%emt 0:00:07]} 11. d4 {[%emt 0:00:13]} O-O {[%emt 0:00:08]} 12. Bd3 {
[%emt 0:00:19]} Ng6 {[%emt 0:00:59] [#]} 13. Bd2 $146 {[%emt 0:01:52]} ({
Predecessor:} 13. Nc3 Qc7 14. Ne2 Rfe8 15. Bd2 Nf6 16. g3 Ne4 17. Be3 Re6 18.
c4 Bb4 19. cxd5 cxd5 {½-½ (29) Albers,S (2117)-Verheul,J (1707) Almelo 2022})
13... Qh4 {[%emt 0:01:14]} 14. Qg4 {[%emt 0:01:22]} (14. Qf5 {is more complex.}
Nf6 15. c3 Bf4 16. Bxf4 Qxf4 17. Nc5) 14... Qxg4 {[%emt 0:00:07]} 15. hxg4 {
[%emt 0:00:05]} Rfe8 {[%emt 0:00:06]} 16. g3 {[%emt 0:05:05]} Ngf8 {[%emt 0:00:
00]} 17. Nc3 {[%emt 0:08:06]} Ne6 {[%emt 0:02:50]} 18. Ne2 {[%emt 0:01:17]} h6
{[%emt 0:00:29]} 19. Kg2 {[%emt 0:00:54]} Re7 {[%emt 0:03:17]} 20. f3 {[%emt 0:
00:00]} Rae8 {[%emt 0:00:23]} 21. Be3 $2 {[%emt 0:00:23] [#]} (21. Rad1 $11)
21... a6 {[%emt 0:06:06]} (21... Bb4 $1 $17 {[%cal Rb4e1]} 22. c3 {[#]} Nec5 $1
) 22. Bf2 $11 {[%emt 0:02:20]} Ng5 {[%emt 0:10:03]} 23. Rad1 {[%emt 0:02:13]}
Nb6 {[%emt 0:11:55][%cal Yg5e4]} 24. b3 {[%emt 0:03:17]} Nd7 {[%emt 0:00:20]
[%cal Yb6d7,Yd7f6,Yf6e4]} 25. c3 {[%emt 0:04:19]} Nf6 {[%emt 0:05:13]} 26. Rd2
{[%emt 0:01:21] [#]} (26. Nf4 $14) 26... Nfe4 $1 {[%emt 0:09:59]} 27. fxe4 {
[%emt 0:07:42]} dxe4 {[%emt 0:00:06]} 28. Ng1 $1 {[%emt 0:04:11][%cal Yd3a6]}
exd3 {[%emt 0:07:29]} 29. Rxe7 {[%emt 0:00:14]} Rxe7 {[%emt 0:00:07]} 30. Rxd3
{[%emt 0:00:57]} Re4 {[%emt 0:04:04]} 31. d5 {[%emt 0:08:11] And now dxc6
would win.} c5 {[%emt 0:06:36]} (31... Rxg4 $2 32. dxc6 Bxg3 33. cxb7 (33. Bxg3
bxc6 34. Nh3 Re4 $18) (33. Rxg3 Rxg3+ 34. Bxg3 bxc6 $18) 33... Bb8+ 34. Kf1 $18
) 32. Re3 {[%emt 0:00:17]} Rxg4 {[%emt 0:01:42] ...f5 is the strong threat.}
33. Re8+ {[%emt 0:00:11]} Kh7 {[%emt 0:00:04]} 34. Nf3 {[%emt 0:00:37]} f5 {
[%emt 0:08:42]} ({Better is} 34... Ne4 $15 35. Ne5 Nxf2 36. Nxg4 Nxg4) 35.
Nxg5+ {[%emt 0:02:29]} Rxg5 {[%emt 0:00:36] Endgame KRB-KRB} 36. Kf3 {[%emt 0:
00:52]} Rg6 {[%emt 0:07:13]} 37. c4 {[%emt 0:00:00]} b6 {[%emt 0:01:05]} 38.
Rd8 {[%emt 0:19:49] White has compensation.} (38. Ra8 $5 {[%cal Ra8a6]}) 38...
a5 {[%emt 0:04:58] The position is equal.} 39. Rd7 {[%emt 0:00:10]} Kg8 {
[%emt 0:01:33] Inhibits Rf7.} 40. Rb7 {[%emt 0:01:30]} Be5 {[%emt 0:00:48]} 41.
Re7 {[%emt 0:30:28]} Bd6 {[%emt 0:30:57]} 42. Rb7 {[%emt 0:00:15]} Be5 {
[%emt 0:00:30]} 43. Re7 {[%emt 0:00:00]} Bd6 {[%emt 0:01:02] Weighted Error
Value: White=0.14 (very precise) / Black=0.11 (very precise)} 1/2-1/2

[Event "44th Chess Olympiad Open 2022"]
[Site "Chennai"]
[Date "2022.08.03"]
[Round "6.19"]
[White "Yilmaz, Mustafa"]
[Black "Schitco, Ivan"]
[Result "1/2-1/2"]
[WhiteElo "2634"]
[BlackElo "2490"]
[Annotator "TA"]
[PlyCount "134"]
[EventDate "2022.??.??"]
[TimeControl "60"]

{[%evp 19,134,10,29,-8,0,0,27,5,18,20,4,-2,38,22,25,16,57,38,35,50,58,10,19,24,
27,43,31,20,9,23,37,32,43,54,40,25,41,31,62,24,114,25,35,26,39,13,29,20,19,0,
17,0,14,9,10,12,23,11,12,0,13,18,10,15,15,0,4,0,0,0,0,0,0,-8,-8,-8,-8,-8,0,0,
17,17,17,17,17,17,15,0,0,0,0,0,0,0,0,0,0,0,0,0,0,0,0,0,0,0,0,0,0,0,0,0,0,0,0,0,
0]} 1. d4 {[%emt 0:00:03]} d5 {[%emt 0:00:10]} 2. c4 {[%emt 0:00:09]} e6 {
[%emt 0:00:12]} 3. Nc3 {[%emt 0:00:38]} Nf6 {[%emt 0:00:07]} 4. cxd5 {[%emt 0:
00:00]} Nxd5 {[%emt 0:00:06]} 5. e4 {[%emt 0:00:12]} Nxc3 {[%emt 0:00:05]} 6.
bxc3 {[%emt 0:00:03]} c5 {[%emt 0:00:07]} 7. Nf3 {[%emt 0:00:03]} cxd4 {
[%emt 0:00:07]} 8. cxd4 {[%emt 0:00:04]} Bb4+ {[%emt 0:00:05]} 9. Bd2 {[%emt 0:
00:00]} Bxd2+ {[%emt 0:00:04]} 10. Qxd2 {[%emt 0:00:04]} O-O {[%emt 0:00:11]}
11. h4 {[%emt 0:00:03] D41: Queen's Gambit Declined: Semi-Tarrasch with 5 cxd5.
} Nc6 {[%emt 0:13:13] [#]} 12. Be2 $146 {[%emt 0:01:36]} ({Predecessor:} 12.
Bb5 Qb6 13. Rb1 Rd8 14. Bd3 Qc7 15. Rc1 Qd6 16. e5 Qb4 17. Be4 Bd7 18. Rb1
Qxd2+ 19. Kxd2 {1-0 (69) Hasenohr,B (2254)-Tschlatscher,T (2155) Wuerttemberg
2020}) 12... Qe7 {[%emt 0:06:42]} 13. Rd1 {[%emt 0:15:23] White has an edge.}
Rd8 {[%emt 0:06:35]} 14. O-O {[%emt 0:01:42]} h6 {[%emt 0:13:55]} 15. Qf4 {
[%emt 0:23:28]} Qf6 {[%emt 0:12:43]} 16. Qe3 {[%emt 0:03:18]} Bd7 {[%emt 0:00:
00]} 17. Rd2 {[%emt 0:05:10]} Ne7 {[%emt 0:08:02]} 18. h5 {[%emt 0:01:55]} Nc6
$1 {[%emt 0:02:06]} 19. Rfd1 {[%emt 0:02:47]} a6 {[%emt 0:05:58]} 20. d5 {
[%emt 0:10:06]} (20. Ne5 $14 {deserves consideration.}) 20... exd5 $11 {
[%emt 0:00:23]} 21. exd5 {[%emt 0:00:06]} Ne7 {[%emt 0:02:39]} 22. d6 {[%emt 0:
00:00]} Nc6 {[%emt 0:01:29]} 23. Qb6 {[%emt 0:01:15]} Rab8 {[%emt 0:02:33]} 24.
Nh2 {[%emt 0:04:01][%cal Yf3h2,Yh2f1,Yf1e3]} Qf4 {[%emt 0:02:39] Prevents Ng4.}
25. Nf1 {[%emt 0:01:10]} Qb4 {[%emt 0:02:48]} 26. Qxb4 {[%emt 0:00:00]} (26.
Rb1 {looks sharper.} Qf4 27. Ne3 Be6 28. Rbd1) 26... Nxb4 {[%emt 0:00:01]} 27.
Ne3 {[%emt 0:00:20]} Be6 {[%emt 0:01:12]} 28. a3 {[%emt 0:00:00]} Nc6 {[%emt 0:
00:16]} 29. f4 {[%emt 0:00:51][%cal Yf2f4,Yf4f5] White is more active.} (29.
Nd5 $5 {[%cal Rd5b6]}) 29... Rd7 {[%emt 0:02:31] [#]} (29... b5 $11 {keeps the
balance.}) 30. Rb1 {[%emt 0:04:05]} ({White should play} 30. Nd5 $1 $16 {
[%cal Rd5b6]}) 30... Na5 $1 {[%emt 0:03:25]} 31. Rb6 {[%emt 0:02:36] And now
f5 would win.} Rc8 {[%emt 0:02:51]} 32. f5 {[%emt 0:04:42]} Bb3 {[%emt 0:00:06]
} 33. Rd3 {[%emt 0:00:51]} Ba2 {[%emt 0:00:00]} 34. Rd2 {[%emt 0:03:31]} Bb3 {
[%emt 0:00:06]} 35. Rd3 {[%emt 0:02:08]} Ba2 {[%emt 0:00:02]} 36. Bf3 {[%emt 0:
00:52]} Kf8 {[%emt 0:02:29]} 37. Kf2 {[%emt 0:00:01]} Rc5 {[%emt 0:01:27]} 38.
Rd2 {[%emt 0:01:26]} (38. Rb2 {with more complications.} Bc4 39. Nxc4 Nxc4 40.
Rxb7 Rxd6 41. f6) 38... Bb3 {[%emt 0:00:15] The position is equal.} (38... Nc4
$2 39. Nxc4 (39. Rxb7 Rxb7 40. Nxc4 Rb8 $11) 39... Bxc4 40. Rc2 $18 (40. Bxb7
Rxf5+ 41. Bf3 Rd8 $16) (40. Rxb7 Rxb7 41. Bxb7 Rxf5+ 42. Ke3 Ke8 $11)) 39. Rd3
{[%emt 0:00:06]} Ba2 {[%emt 0:00:01]} 40. a4 {[%emt 0:01:46]} f6 $1 {[%emt 0:
04:01]} 41. g4 {[%emt 0:00:00]} Bf7 {[%emt 0:07:04]} 42. Kg3 {[%emt 0:02:52]}
Ke8 {[%emt 0:04:51]} 43. Ng2 {[%emt 0:04:56]} Nc4 {[%emt 0:06:23]} 44. Rxb7 {
[%emt 0:04:50]} Rxb7 {[%emt 0:01:37]} 45. Bxb7 {[%emt 0:00:20]} Ne5 {[%emt 0:
00:03]} 46. Rd4 {[%emt 0:05:27]} Rc4 {[%emt 0:11:06]} 47. Rxc4 {[%emt 0:03:11]}
Bxc4 {[%emt 0:00:00] Endgame KBN-KBN} 48. Bc8 {[%emt 0:03:07]} Nf7 {[%emt 0:03:
02]} 49. d7+ {[%emt 0:00:14]} Ke7 {[%emt 0:00:17]} 50. Ne3 {[%emt 0:01:41]} Bb3
{[%emt 0:01:04] [#] Hoping for ...a5.} 51. a5 {[%emt 0:00:14]} Ne5 {[%emt 0:00:
00]} 52. Bxa6 {[%emt 0:01:01]} Nc6 $1 {[%emt 0:00:14]} 53. Bb5 {[%emt 0:02:27]}
Nxa5 {[%emt 0:00:06]} 54. Ng2 {[%emt 0:00:07]} Nb7 {[%emt 0:00:38]} 55. Nf4 {
[%emt 0:00:17]} Nc5 {[%emt 0:00:27]} 56. Ng6+ {[%emt 0:00:30]} Kd8 {[%emt 0:00:
00]} 57. Nf8 {[%emt 0:00:05]} Ke7 {[%emt 0:01:14]} 58. Kf3 {[%emt 0:01:54]}
Bd1+ {[%emt 0:00:37]} 59. Kf4 {[%emt 0:00:02]} Bb3 {[%emt 0:00:44]} 60. Ke3 {
[%emt 0:00:17][%cal Yb5c6]} Bd1 {[%emt 0:00:47]} 61. Kf4 {[%emt 0:03:16]} Bb3 {
[%emt 0:00:02]} 62. Bc6 $1 {[%emt 0:01:28][%cal Yf4e3]} Bd1 {[%emt 0:00:29]}
63. Kg3 {[%emt 0:00:43]} Be2 {[%emt 0:00:51]} 64. Kf4 {[%emt 0:01:01]} Bd1 {
[%emt 0:00:01]} 65. Bb5 {[%emt 0:00:25]} Bb3 {[%emt 0:00:19]} 66. Ke3 {[%emt 0:
00:00][%cal Yb5c6]} Bd1 {[%emt 0:00:01]} 67. Kf4 {[%emt 0:00:55]} Bb3 {[%emt 0:
00:00] Weighted Error Value: White=0.09 (flawless) /Black=0.07 (flawless)}
1/2-1/2

[Event "44th Chess Olympiad Open 2022"]
[Site "Chennai"]
[Date "2022.08.03"]
[Round "6.19"]
[White "Sanal, Vahap"]
[Black "Baltag, Iulian"]
[Result "1/2-1/2"]
[WhiteElo "2574"]
[BlackElo "2405"]
[Annotator "TA"]
[PlyCount "105"]
[EventDate "2022.??.??"]
[TimeControl "60"]

{[%evp 15,105,35,22,7,12,14,14,19,28,17,15,14,26,0,0,0,7,0,0,-18,33,15,20,25,
65,60,117,47,128,7,0,3,0,0,0,0,68,29,33,16,24,25,38,42,41,11,41,39,45,46,47,47,
52,33,42,42,42,42,42,42,42,42,42,42,43,46,47,0,47,33,35,35,45,0,0,0,0,0,0,0,0,
0,0,0,0,0,0,0,0,0,0,0]} 1. e4 {[%emt 0:00:48]} e5 {[%emt 0:00:07]} 2. Nf3 {
[%emt 0:00:08]} Nf6 {[%emt 0:00:16]} 3. Nxe5 {[%emt 0:01:48]} d6 {[%emt 0:00:
00]} 4. Nf3 {[%emt 0:00:07]} Nxe4 {[%emt 0:00:05]} 5. d4 {[%emt 0:00:20]} d5 {
[%emt 0:00:10]} 6. Bd3 {[%emt 0:00:14]} Bd6 {[%emt 0:00:09]} 7. O-O {[%emt 0:
00:00]} O-O {[%emt 0:00:05]} 8. Re1 {[%emt 0:00:16]} Bf5 {[%emt 0:06:05]} 9.
Nc3 {[%emt 0:00:50] C42: Petroff Defence: 3 Nxe5 and unusual White 3rd moves.}
Nxc3 {[%emt 0:01:30]} 10. bxc3 {[%emt 0:00:02]} Bg4 {[%emt 0:03:23]} 11. h3 {
[%emt 0:03:25]} Bh5 {[%emt 0:00:19]} 12. Rb1 {[%emt 0:03:42]} b6 {[%emt 0:00:
00]} 13. c4 {[%emt 0:11:35]} c6 {[%emt 0:19:50]} 14. cxd5 {[%emt 0:07:43]} cxd5
{[%emt 0:00:35]} 15. c4 {[%emt 0:00:25]} Nc6 {[%emt 0:05:19]} 16. cxd5 {
[%emt 0:04:37]} Nb4 {[%emt 0:02:00]} 17. Be4 {[%emt 0:17:46] [#]} f5 $146 {
[%emt 0:13:31]} ({Better is} 17... Nxa2 $11 18. Bd2 a5) ({Predecessor:} 17...
Re8 18. Bd2 Rxe4 19. Rxe4 Bg6 20. Rh4 Nxd5 21. Rc1 Be7 22. Rg4 Bf5 23. Rg3 Bd6
{1-0 (40) Ivanov,A (2588)-Bick,J (2238) Philadelphia 2006}) 18. Bd3 $14 {
[%emt 0:00:47][%cal Ye4d3,Yd3e2,Ye2b5]} Rc8 {[%emt 0:01:03] Against Bc4} 19.
Be2 {[%emt 0:13:09]} Nxd5 {[%emt 0:12:48] [#] Threatens to win with .. .Nc3.}
20. Qb3 {[%emt 0:01:32]} Kh8 {[%emt 0:02:28]} 21. Bg5 {[%emt 0:04:45]} (21.
Qxd5 $16 Bh2+ 22. Nxh2 Qxd5 23. Bxh5) 21... Qd7 {[%emt 0:05:00]} 22. Ne5 {
[%emt 0:02:22]} ({Stronger than} 22. Ba6 {[#]} Rc3 $1 23. Qb5 (23. Qxd5 $2 Bh2+
24. Nxh2 Qxd5 $19) 23... Qxb5 24. Bxb5 Bxf3 25. gxf3 h6 $15) (22. Qxd5 $16 Bh2+
23. Nxh2 Qxd5 24. Bxh5) 22... Bxe5 $11 {[%emt 0:00:12]} 23. Bb5 {[%emt 0:01:28]
} ({Much worse is} 23. dxe5 Bxe2 24. Rxe2 Nc3 $17) 23... Bh2+ $1 {[%emt 0:00:
00]} 24. Kxh2 {[%emt 0:00:07]} Qd6+ {[%emt 0:00:03]} 25. Re5 {[%emt 0:04:45]
[%cal Ye1e5,Ye5f5,Yf5f4]} Nf6 {[%emt 0:02:01]} (25... Nc3 $11 26. Qb4 Nxb5 27.
Qxb5 Qxd4) 26. Qe6 {[%emt 0:04:24]} Qxd4 {[%emt 0:05:54]} 27. Rxf5 {[%emt 0:03:
33]} Bg6 {[%emt 0:02:21]} 28. Rf4 {[%emt 0:00:36]} Qd5 {[%emt 0:00:00]} 29.
Qxd5 {[%emt 0:00:14]} Nxd5 {[%emt 0:00:04]} 30. Rxf8+ {[%emt 0:00:05]} Rxf8 {
[%emt 0:00:04]} 31. Rc1 {[%emt 0:00:11]} h6 {[%emt 0:00:45]} 32. Bh4 {[%emt 0:
00:06]} Kh7 {[%emt 0:01:41]} 33. a3 {[%emt 0:02:21][%cal Ya2a3,Ya3a4,Ya4b5]}
Nf4 {[%emt 0:01:06]} 34. Rc3 {[%emt 0:08:49]} Rf5 {[%emt 0:00:00]} 35. a4 {
[%emt 0:00:44]} Ne6 {[%emt 0:01:42]} 36. Rc8 {[%emt 0:00:44]} Rc5 {[%emt 0:01:
38]} 37. Ra8 {[%emt 0:02:59]} Nc7 {[%emt 0:01:25][%csl Ya8,Yb5]} 38. Rxa7 {
[%emt 0:00:02]} Nxb5 {[%emt 0:00:04]} 39. axb5 $14 {[%emt 0:00:02] Endgame And
now Bf6 would win. KRB-KRB} Kg8 {[%emt 0:00:08]} 40. Ra8+ {[%emt 0:01:26]} Kh7
{[%emt 0:00:24]} 41. Ra7 {[%emt 0:30:05] Black must now prevent Bf6.} Kg8 $1 {
[%emt 0:30:05]} 42. Rd7 {[%emt 0:00:00]} Rxb5 {[%emt 0:00:00]} 43. Rd6 {
[%emt 0:00:00]} Bf7 {[%emt 0:00:00]} 44. f3 {[%emt 0:00:00]} (44. Bd8 $5 {
[%cal Rd8b6]}) 44... Rb2 {[%emt 0:00:00] The position is equal.} 45. Bg3 {
[%emt 0:00:00]} b5 {[%emt 0:00:00]} 46. Rb6 {[%emt 0:00:00]} b4 {[%emt 0:00:00]
} 47. Be5 {[%emt 0:00:00]} Re2 {[%emt 0:00:00]} 48. Rb8+ {[%emt 0:00:00]} Kh7 {
[%emt 0:00:00]} 49. Bd4 {[%emt 0:00:00]} b3 {[%emt 0:00:00]} 50. Rb7 {[%emt 0:
00:00]} Kg8 {[%emt 0:00:00]} 51. Rb8+ {[%emt 0:00:00]} Kh7 {[%emt 0:00:00]} 52.
Rb7 {[%emt 0:00:00]} Kg8 {[%emt 0:00:00]} 53. Rb8+ {[%emt 0:00:00] Weighted
Error Value: White=0.11 (very precise) /Black=0.10 (very precise)} 1/2-1/2

[Event "44th Chess Olympiad Open 2022"]
[Site "Chennai"]
[Date "2022.08.03"]
[Round "6.19"]
[White "Macovei, Andrei"]
[Black "Can, Emre"]
[Result "1-0"]
[WhiteElo "2478"]
[BlackElo "2606"]
[Annotator "TA"]
[PlyCount "40"]
[EventDate "2022.??.??"]
[TimeControl "60"]

{[%evp 18,40,18,18,16,0,0,-16,0,-10,-17,-27,-18,-39,-35,-36,-29,-33,-39,-67,
-66,-52,749,-41,-40]} 1. e4 {[%emt 0:00:03] ChessBase II} c5 {[%emt 0:00:17]}
2. Nf3 {[%emt 0:00:03]} d6 {[%emt 0:00:19]} 3. d4 {[%emt 0:00:03]} cxd4 {
[%emt 0:00:10]} 4. Nxd4 {[%emt 0:00:02]} Nf6 {[%emt 0:00:29]} 5. Nc3 {[%emt 0:
00:00]} Nc6 {[%emt 0:00:13]} 6. Bg5 {[%emt 0:01:37]} e6 {[%emt 0:00:18]} 7. Qd2
{[%emt 0:00:38]} Be7 {[%emt 0:00:53]} 8. O-O-O {[%emt 0:07:12]} a6 {[%emt 0:00:
00]} 9. f3 {[%emt 0:05:45]} Nxd4 {[%emt 0:01:10]} 10. Qxd4 {[%emt 0:00:06]} b5
{[%emt 0:00:19] B66: Sicilian: Richter-Rauzer: 7...a6 8 0-0-0 h6.} 11. h4 {
[%emt 0:11:04] 11.Kb1 might become the main line.} Bb7 {[%emt 0:01:31]} 12. Qd2
{[%emt 0:07:53]} O-O {[%emt 0:03:22] The position is equal.} 13. Bd3 {[%emt 0:
00:00]} Qc7 {[%emt 0:25:26]} 14. Ne2 {[%emt 0:09:52]} d5 {[%emt 0:24:10][%cal
Yd6d5,Yd5e4]} 15. e5 {[%emt 0:22:42] [#]} Ne4 {[%emt 0:00:16] [#]} 16. Bxe4
$146 {[%emt 0:00:21]} (16. Qe3 Bc5) ({Predecessor:} 16. fxe4 dxe4 17. Bxe7 Qxe7
18. Nf4 exd3 19. Qxd3 Rfd8 20. Qg3 Be4 21. Nh5 Bg6 22. Nf4 Be4 23. Nh5 Bg6 24.
Nf4 {½-½ (24) Maze,S (2627)-Demuth,A (2545) Agen 2016 CBM 174 [ChessBase II]}
) 16... dxe4 {[%emt 0:00:09]} 17. Bxe7 {[%emt 0:00:11]} Qxe7 {[%emt 0:00:00]}
18. f4 {[%emt 0:02:24]} Rad8 {[%emt 0:04:43] Inhibits Qd7.} 19. Qe3 {[%emt 0:
05:08]} Rd4 $2 {[%emt 0:00:18] [#]} 20. Rd2 $2 (20. Rxd4 $18 Ba8 21. Nc3) 20...
Rxd2 {[%emt 0:16:57] Weighted Error Value: White=0.86/Black=0.08 (flawless) .
Loss on time!?} 1-0

[Event "44th Chess Olympiad Open 2022"]
[Site "Chennai"]
[Date "2022.08.03"]
[Round "6.19"]
[White "Ceres, Dragos"]
[Black "Solak, Dragan"]
[Result "0-1"]
[WhiteElo "2378"]
[BlackElo "2594"]
[Annotator "TA"]
[PlyCount "78"]
[EventDate "2022.??.??"]
[TimeControl "60"]

{[%evp 16,78,19,21,25,43,51,31,33,30,30,31,24,30,37,31,32,18,65,14,22,0,0,0,33,
37,43,25,32,34,49,54,63,0,2,12,10,-22,-47,-85,-79,-56,-84,-56,-61,-52,-48,-68,
-72,-106,-116,-222,-106,-360,-320,-425,-167,-515,-470,-971,-707,-1177,-1180,
-5606,-5585]} 1. e4 {[%emt 0:00:02]} c5 {[%emt 0:00:06]} 2. c3 {[%emt 0:00:05]}
Nf6 {[%emt 0:01:43]} 3. e5 {[%emt 0:00:06]} Nd5 {[%emt 0:00:05]} 4. Nf3 {
[%emt 0:00:09]} Nc6 {[%emt 0:04:53]} 5. Bc4 {[%emt 0:00:09]} Nb6 {[%emt 0:00:
00]} 6. Bb3 {[%emt 0:00:18]} c4 {[%emt 0:08:55]} 7. Bc2 {[%emt 0:01:44]} d6 {
[%emt 0:02:03]} 8. exd6 {[%emt 0:00:08]} Qxd6 {[%emt 0:00:44]} 9. O-O {[%emt 0:
00:00]} Bg4 {[%emt 0:01:47] B22: Sicilian: 2 c3.} 10. Re1 {[%emt 0:00:18]
Inhibits Ne5.10.Re1 is better than 10.h3.} e6 {[%emt 0:03:16][%cal Yc6e5]} 11.
h3 {[%emt 0:13:39]} Bh5 {[%emt 0:00:44][%cal Yc6e5] White is slightly better.}
12. b3 {[%emt 0:00:16]} Be7 {[%emt 0:04:04]} 13. Na3 {[%emt 0:08:08]} cxb3 {
[%emt 0:02:30]} 14. axb3 {[%emt 0:00:05]} O-O {[%emt 0:02:48]} 15. d4 {[%emt 0:
00:00]} Nd5 {[%emt 0:17:25]} 16. Bd2 {[%emt 0:16:02]} Rac8 {[%emt 0:05:01] [#]}
(16... Qc7 $11 {is more appropriate.}) 17. Nb5 $146 {[%emt 0:09:34]} (17. g4
$14 Bg6 18. Bxg6 hxg6 19. Nb5) ({Predecessor:} 17. Be4 Rfd8 18. Qe2 Bg6 19. Nc4
Qb8 20. Bxg6 hxg6 21. Nce5 Nxe5 22. Nxe5 Qd6 23. Rxa7 {1-0 (34) Gabrielian,A 
(2554)-Nikologorskiy,K (2414) Moscow 2015}) 17... Qb8 $11 {[%emt 0:15:13]} 18.
g4 {[%emt 0:19:21]} Bg6 {[%emt 0:00:15]} 19. Bxg6 {[%emt 0:00:05]} hxg6 {
[%emt 0:01:29]} 20. c4 {[%emt 0:00:07]} Nf6 {[%emt 0:11:26]} 21. Ne5 {[%emt 0:
00:00]} a6 {[%emt 0:07:23] [#]} 22. Bf4 $1 {[%emt 0:03:41] Black must now
prevent Nxc6.} Nxe5 {[%emt 0:00:46]} (22... Qa8 23. Qf3) 23. Bxe5 {[%emt 0:00:
00]} Qa8 {[%emt 0:00:07]} 24. d5 {[%emt 0:03:50]} ({White should play} 24. g5
$14 Ne8 25. Qg4) 24... exd5 {[%emt 0:01:45]} 25. Nc7 {[%emt 0:03:23]} Qa7 {
[%emt 0:05:36]} 26. cxd5 {[%emt 0:00:13]} Bb4 {[%emt 0:01:00]} 27. Re2 {
[%emt 0:01:15] [#]} Qb6 {[%emt 0:00:25] Threatens to win with ...Bd6.} 28. Rc2
{[%emt 0:04:30]} Bd6 {[%emt 0:00:28]} 29. Bxd6 {[%emt 0:01:37]} Qxd6 {[%emt 0:
00:00]} 30. Rac1 {[%emt 0:00:08]} Rcd8 {[%emt 0:00:16][%cal Yc8d8,Yd8d7,Yd7e7]}
31. g5 {[%emt 0:01:15]} Nh5 $36 {[%emt 0:00:28] Keeping White busy.} (31...
Nxd5 $2 32. Rd2 Qf4 33. Nxd5 $18 (33. Rxd5 Rxd5 34. Nxd5 Qxg5+ 35. Kf1 Rd8 $14)
) 32. Qf3 {[%emt 0:01:17]} Rd7 {[%emt 0:00:13] ...Rc8 is the strong threat.}
33. Rc4 {[%emt 0:00:03]} (33. Qe3 $17) 33... Rfd8 {[%emt 0:00:00]} (33... Rc8
$19 {is more deadly.} 34. Qc3 Kh7) 34. Qg4 $2 {[%emt 0:00:00] This costs White
the game.} (34. Qe3 $17) 34... Re7 {[%emt 0:00:00]} 35. Qd4 {[%emt 0:00:41] [#]
} Kh7 $2 {[%emt 0:01:13]} (35... Ng3 $1 {aiming for ...Ne2+.} 36. R1c2 (36.
fxg3 $2 Qxg3+ 37. Kf1 Qxh3+ 38. Kf2 Qh2+ 39. Kf1 Re5 $19) 36... b5) 36. Qa7 $2
{[%emt 0:01:14]} (36. Qc5 {is tougher.}) 36... Nf4 {[%emt 0:00:29] Black is
clearly winning.} 37. Kf1 {[%emt 0:00:22]} (37. Qc5 $142 Qxc5 38. Rxc5) 37...
Nxd5 {[%emt 0:00:59]} ({Stronger than} 37... Qe5 38. Qe3 Qxe3 39. fxe3 $11) 38.
Rh4+ {[%emt 0:00:47]} Kg8 {[%emt 0:00:03] ( -> ...Qh2)} 39. Nxd5 {[%emt 0:00:
28]} Qxd5 {[%emt 0:00:00] Weighted Error Value: White=0.92/Black=0.29 (precise)
} 0-1